[Event "XI Paracin Festival 2018"]
[Site "Paracin"]
[Date "2018.07.09"]
[Round "4"]
[White "Yordanov, Lachezar"]
[Black "Radovic, Luka"]
[Result "1-0"]
[ECO "A01"]
[WhiteElo "2290"]
[BlackElo "2344"]
[Annotator "NA"]
[PlyCount "79"]
[EventDate "2018.07.06"]
[EventType "swiss"]
[EventCountry "SRB"]
[SourceTitle "playchess.com"]
[Source "ChessBase"]
[SourceQuality "1"]
[TimeControl "5400+30"]

1. b3 {[%emt 0:00:00]} d6 {[%emt 0:05:00]} 2. Bb2 {[%emt 0:00:00]} Nd7 {[%emt 0:00:44]} 3. d4 {[%emt 0:02:10]} Ngf6 {[%emt 0:02:16]} 4. Nf3 {[%emt 0:00:10]} g6 {[%emt 0:00:53]} 5. g3 {[%emt 0:00:06]} Bg7 {[%emt 0:00:21]} 6. Bg2 {[%emt 0:00:06]} O-O {[%emt 0:00:43]} 7. O-O {[%emt 0:00:04]} e5 {[%emt 0:06:53]} 8. dxe5 $14 {[%emt 0:00:44]} Ng4 {[%emt 0:00:56]} 9. c4 {[%emt 0:01:17]} Re8 {[%emt 0:09:13]} 10. Nc3 {[%emt 0:01:12]} Ndxe5 {[%emt 0:06:39]} 11. a4 {[%emt 0:05:59]} Bd7 {[%emt 0:06:09]} 12. a5 {[%emt 0:06:06]} Rb8 {[%emt 0:08:37]} 13. Qc2 {[%emt 0:11:01]} Qc8 {[%emt 0:06:54]} 14. Nxe5 {[%emt 0:12:43]} Nxe5 {[%emt 0:00:28]} 15. Rfd1 {[%emt 0:01:30]} Bh3 {[%emt 0:03:18]} 16. Bh1 {[%emt 0:02:16]} h5 {[%emt 0:03:51]} 17. Nd5 {[%emt 0:03:06]} h4 {[%emt 0:04:45]} 18. f4 {[%emt 0:11:10]} c6 {[%emt 0:06:29]} 19. fxe5 {[%emt 0:02:56]} cxd5 {[%emt 0:00:05]} 20. Bxd5 {[%emt 0:00:18]} dxe5 {[%emt 0:01:42]} 21. Qe4 {[%emt 0:10:31]} Qc5+ {[%emt 0:04:09]} 22. Kh1 {[%emt 0:01:18]} hxg3 {[%emt 0:00:08]} 23. hxg3 {[%emt 0:00:29]} Bf5 {[%emt 0:00:36]} 24. Qg2 {[%emt 0:05:36]} Bf6 {[%emt 0:01:20]} 25. Qg1 {[%emt 0:01:24]} Qc8 {[%emt 0:06:26]} 26. Qe3 {[%emt 0:01:51]} Kg7 {[%emt 0:01:12]} 27. Kg2 {[%emt 0:00:42]} Bh3+ {[%emt 0:01:08]} 28. Kf2 {[%emt 0:00:35]} Bg4 {[%emt 0:02:44]} 29. Rh1 {[%emt 0:03:36]} Qf5+ {[%emt 0:00:45]} 30. Kg2 {[%emt 0:00:49]} Rh8 {[%emt 0:00:36]} 31. Be4 {[%emt 0:01:51]} Bh3+ {[%emt 0:01:23]} 32. Kg1 {[%emt 0:00:13]} Qd7 {[%emt 0:01:50]} 33. Kf2 {[%emt 0:00:42]} Rbd8 {[%emt 0:00:41]} 34. Bd5 {[%emt 0:01:40]} Bg4 {[%emt 0:01:01]} 35. Kg2 {[%emt 0:00:48]} Qf5 {[%emt 0:00:30]} 36. Be4 {[%emt 0:01:11]} Bh3+ {[%emt 0:00:18]} 37. Kg1 {[%emt 0:03:06]} Bg5 {[%emt 0:00:22]} 38. Qc5 {[%emt 0:01:54]} Qxe4 {[%emt 0:00:34]} 39. Bxe5+ {[%emt 0:00:20]} f6 {[%emt 0:00:45]} 40. Qe7+ {[%emt 0:00:07]} 1-0

[Event "XI Paracin Festival 2018"]
[Site "Paracin"]
[Date "2018.07.09"]
[Round "4"]
[White "Colovic, Dusan"]
[Black "Vaishali R"]
[Result "1-0"]
[ECO "B51"]
[WhiteElo "2279"]
[BlackElo "2337"]
[Annotator "NA"]
[PlyCount "91"]
[EventDate "2018.07.06"]
[EventType "swiss"]
[EventCountry "SRB"]
[SourceTitle "playchess.com"]
[Source "ChessBase"]
[SourceQuality "1"]
[TimeControl "5400+30"]

1. e4 {[%emt 0:00:00]} c5 {[%emt 0:00:16]} 2. Nf3 {[%emt 0:00:00]} d6 {[%emt 0:00:09]} 3. Bb5+ {[%emt 0:00:00]} Nd7 {[%emt 0:00:05]} 4. Ba4 {[%emt 0:04:42]} Ngf6 {[%emt 0:05:38]} 5. d3 {[%emt 0:06:27]} e6 {[%emt 0:10:36]} 6. O-O {[%emt 0:00:48]} Be7 {[%emt 0:00:21]} 7. Re1 {[%emt 0:03:08]} O-O {[%emt 0:00:59]} 8. c3 {[%emt 0:00:07]} a6 {[%emt 0:03:02]} 9. Bc2 {[%emt 0:00:49]} b5 {[%emt 0:02:27]} 10. Nbd2 {[%emt 0:03:58]} Bb7 {[%emt 0:01:45]} 11. Nf1 {[%emt 0:00:06]} Qc7 {[%emt 0:04:53]} 12. Ng3 {[%emt 0:00:21]} Rfe8 {[%emt 0:02:18]} 13. a4 {[%emt 0:01:22]} Bf8 {[%emt 0:05:50]} 14. h3 {[%emt 0:01:50]} e5 {[%emt 0:03:54]} 15. Nf5 {[%emt 0:04:19]} c4 {[%emt 0:11:07]} 16. Bg5 {[%emt 0:08:10]} h6 {[%emt 0:02:43]} 17. Bxf6 {[%emt 0:04:26]} Nxf6 {[%emt 0:00:07]} 18. d4 {[%emt 0:00:31]} g6 {[%emt 0:08:03]} 19. Ng3 {[%emt 0:04:02]} Bg7 {[%emt 0:04:32]} 20. Qd2 {[%emt 0:06:35]} Nd7 {[%emt 0:05:59]} 21. Red1 {[%emt 0:03:37]} Rad8 {[%emt 0:06:06]} 22. b4 {[%emt 0:07:17]} d5 {[%emt 0:02:36]} 23. axb5 {[%emt 0:01:38]} axb5 {[%emt 0:00:06]} 24. Re1 {[%emt 0:15:24]} dxe4 {[%emt 0:05:20]} 25. Bxe4 {[%emt 0:00:50]} Bxe4 {[%emt 0:05:13]} 26. Rxe4 {[%emt 0:00:23]} f5 {[%emt 0:00:18]} 27. Ree1 {[%emt 0:00:17]} e4 {[%emt 0:00:32]} 28. Nh4 {[%emt 0:00:35]} Qc6 {[%emt 0:07:05]} 29. Ra7 {[%emt 0:01:12]} Qf6 {[%emt 0:01:00]} 30. Nhxf5 {[%emt 0:09:03]} gxf5 {[%emt 0:00:23]} 31. Qf4 {[%emt 0:00:05]} Rf8 {[%emt 0:01:11]} 32. h4 {[%emt 0:00:35]} Rf7 {[%emt 0:00:51]} 33. Rea1 {[%emt 0:01:58]} Nb6 {[%emt 0:00:30]} 34. Nh5 {[%emt 0:02:50]} Qg6 {[%emt 0:00:14]} 35. Rxf7 {[%emt 0:01:28]} Qxf7 {[%emt 0:00:02]} 36. Nxg7 {[%emt 0:00:24]} Kxg7 {[%emt 0:00:57]} 37. Ra6 {[%emt 0:00:24]} Qb7 {[%emt 0:00:50]} 38. Qe5+ {[%emt 0:00:13]} Kf7 {[%emt 0:00:29]} 39. Qxf5+ {[%emt 0:01:08]} Kg7 {[%emt 0:00:07]} 40. Qxb5 {[%emt 0:00:23]} Rd6 {[%emt 0:00:50]} 41. Qa5 {[%emt 0:00:19]} Qc6 {[%emt 0:00:32]} 42. Qe5+ {[%emt 0:03:28]} Rf6 {[%emt 0:00:25]} 43. b5 {[%emt 0:00:37]} Qe6 {[%emt 0:00:36]} 44. Ra7+ {[%emt 0:00:42]} Kg8 {[%emt 0:00:30]} 45. Qb8+ {[%emt 0:00:20]} Nc8 {[%emt 0:00:19]} 46. Ra6 {[%emt 0:00:34]} 1-0

[Event "XI Paracin Festival 2018"]
[Site "Paracin"]
[Date "2018.07.09"]
[Round "4"]
[White "Sevgi, Volkan"]
[Black "Kathmale, Sameer"]
[Result "0-1"]
[ECO "B12"]
[WhiteElo "2277"]
[BlackElo "2323"]
[Annotator "NA"]
[PlyCount "50"]
[EventDate "2018.07.06"]
[EventType "swiss"]
[EventCountry "SRB"]
[SourceTitle "playchess.com"]
[Source "ChessBase"]
[SourceQuality "1"]
[TimeControl "5400+30"]

1. e4 c6 2. d4 d5 3. e5 Bf5 4. Nf3 e6 5. Be2 c5 6. Be3 cxd4 7. Nxd4 Ne7 8. c4 Nbc6 9. Qa4 a6 10. cxd5 b5 11. Nxc6 Nxc6 $11 ({Doch nicht} 11... bxa4 $6 12. Nxd8 Rxd8 13. Bxa6 $16) 12. Qf4 Nb4 13. O-O Nxd5 14. Qg3 Nxe3 15. Qxe3 Be7 16. Bf3 Rc8 17. Bb7 Rc2 18. Bxa6 O-O 19. Bxb5 Bc5 20. Qe1 Rxb2 21. Nc3 Bb4 22. Ba4 Qa5 23. Rc1 Rxa2 24. g4 Bg6 25. Bb3 Ra3 0-1

[Event "XI Paracin Festival 2018"]
[Site "Paracin"]
[Date "2018.07.10"]
[Round "5"]
[White "Georgiev, Kiril"]
[Black "Wadsworth, Matthew J"]
[Result "1-0"]
[ECO "D10"]
[WhiteElo "2596"]
[BlackElo "2377"]
[Annotator "RC"]
[PlyCount "75"]
[EventDate "2018.07.06"]
[EventType "swiss"]
[EventCountry "SRB"]
[SourceTitle "playchess.com"]
[Source "ChessBase"]
[SourceQuality "1"]
[TimeControl "5400+30"]

1. d4 {[%emt 0:08:26]} d5 {[%emt 0:00:00]} 2. c4 {[%emt 0:01:06]} c6 {[%emt 0:00:00]} 3. cxd5 {[%emt 0:03:15]} cxd5 {[%emt 0:00:00]} 4. Bg5 {[%emt 0:00:06]} Nc6 {[%emt 0:06:31]} 5. Nc3 {[%emt 0:01:09]} h6 {[%emt 0:03:34]} 6. Bh4 {[%emt 0:00:45]} Nf6 {[%emt 0:01:08]} 7. Bxf6 {[%emt 0:03:28]} exf6 {[%emt 0:00:10]} 8. e3 {[%emt 0:00:28]} Bb4 {[%emt 0:02:49]} 9. Nge2 {[%emt 0:02:28]} Be6 {[%emt 0:08:05]} 10. a3 {[%emt 0:01:01]} Bd6 {[%emt 0:00:17]} 11. g3 {[%emt 0:00:23]} O-O {[%emt 0:02:56]} 12. Bg2 {[%emt 0:00:07]} Bc7 {[%emt 0:05:18]} 13. O-O {[%emt 0:07:02]} Na5 {[%emt 0:04:09]} 14. Qd3 {[%emt 0:04:59]} Rc8 {[%emt 0:05:47]} 15. Rac1 {[%emt 0:04:45]} f5 {[%emt 0:08:28]} 16. b4 {[%emt 0:06:46]} Nc4 {[%emt 0:04:42]} 17. Bxd5 {[%emt 0:04:44]} Bxd5 {[%emt 0:00:55]} 18. Nxd5 {[%emt 0:00:08]} Qxd5 {[%emt 0:00:50]} 19. Rxc4 {[%emt 0:01:12]} Bd6 {[%emt 0:00:56]} 20. Rfc1 {[%emt 0:01:04]} Rcd8 {[%emt 0:01:42]} 21. R4c2 {[%emt 0:00:56]} h5 {[%emt 0:01:27]} 22. Nc3 {[%emt 0:05:00]} Qe6 {[%emt 0:00:28]} 23. Nb5 {[%emt 0:00:18]} Bb8 {[%emt 0:09:03]} 24. Rc5 {[%emt 0:07:22]} g6 {[%emt 0:02:01]} 25. Qc4 {[%emt 0:02:33]} Qf6 {[%emt 0:01:30]} 26. Rd5 {[%emt 0:02:55]} h4 {[%emt 0:01:27]} 27. Rxd8 {[%emt 0:02:36]} Rxd8 {[%emt 0:00:01]} 28. Kg2 {[%emt 0:01:50]} g5 {[%emt 0:02:45]} 29. Qe2 {[%emt 0:02:54]} a6 {[%emt 0:09:13]} 30. Nc3 {[%emt 0:00:59]} Kg7 {[%emt 0:00:21]} 31. Qf3 {[%emt 0:02:09]} b5 {[%emt 0:01:14]} 32. Ne2 {[%emt 0:00:39]} Qe6 {[%emt 0:06:47]} 33. Rc5 {[%emt 0:03:14]} Kg6 {[%emt 0:01:51]} 34. gxh4 {[%emt 0:03:10]} g4 {[%emt 0:01:14]} 35. Qf4 {[%emt 0:01:48]} Rd5 {[%emt 0:04:22]} 36. Qxb8 {[%emt 0:02:44]} Qe4+ {[%emt 0:00:03]} 37. Kg1 {[%emt 0:00:08]} Rxc5 {[%emt 0:00:08]} 38. Qd6+ {[%emt 0:00:21]} 1-0

[Event "XI Paracin Festival 2018"]
[Site "Paracin"]
[Date "2018.07.10"]
[Round "5"]
[White "Kadric, Denis"]
[Black "Tan, Justin"]
[Result "1/2-1/2"]
[ECO "C50"]
[WhiteElo "2522"]
[BlackElo "2481"]
[Annotator "ChessBase"]
[PlyCount "71"]
[EventDate "2018.07.06"]
[EventType "swiss"]
[EventCountry "SRB"]
[SourceTitle "playchess.com"]
[Source "ChessBase"]
[SourceQuality "1"]
[TimeControl "5400+30"]

1. e4 {[%emt 0:00:00]} e5 {[%emt 0:00:00]} 2. Nf3 {[%emt 0:00:00]} Nc6 {[%emt 0:00:00]} 3. Bc4 {[%emt 0:00:00]} Bc5 {[%emt 0:00:09]} 4. O-O {[%emt 0:00:00]} Nf6 {[%emt 0:00:13]} 5. d3 {[%emt 0:00:00]} O-O {[%emt 0:00:39]} 6. h3 {[%emt 0:00:00]} h6 {[%emt 0:00:12]} 7. c3 {[%emt 0:00:03]} d6 {[%emt 0:00:24]} 8. Re1 {[%emt 0:00:03]} a5 {[%emt 0:00:18]} 9. Nbd2 {[%emt 0:00:25]} a4 {[%emt 0:05:41]} 10. Bb5 {[%emt 0:00:08]} Bd7 {[%emt 0:00:01]} 11. Nf1 {[%emt 0:00:16]} Ne7 {[%emt 0:00:24]} 12. Bxd7 {[%emt 0:00:03]} Qxd7 {[%emt 0:00:12]} 13. d4 {[%emt 0:03:05]} Bb6 {[%emt 0:04:11]} 14. Ng3 {[%emt 0:04:53]} Ng6 {[%emt 0:06:35]} 15. Be3 {[%emt 0:00:03]} exd4 {[%emt 0:15:23]} 16. cxd4 {[%emt 0:01:52]} Rfe8 {[%emt 0:00:18]} 17. Qc2 {[%emt 0:08:11]} Qb5 {[%emt 0:16:50]} 18. Rac1 {[%emt 0:04:04]} Rac8 {[%emt 0:00:32]} 19. d5 {[%emt 0:17:45]} Ba5 {[%emt 0:09:28]} 20. Nd4 {[%emt 0:00:32]} Qd7 {[%emt 0:00:51]} 21. Red1 {[%emt 0:07:32]} h5 {[%emt 0:07:50]} 22. h4 {[%emt 0:19:26]} Bb6 {[%emt 0:05:23]} 23. Bg5 {[%emt 0:01:58]} Nh7 {[%emt 0:03:20]} 24. Ngf5 {[%emt 0:05:07]} Nxg5 {[%emt 0:01:20]} 25. hxg5 {[%emt 0:00:03]} Qd8 {[%emt 0:00:26]} 26. Qc3 {[%emt 0:03:43]} Qxg5 {[%emt 0:02:39]} 27. Ne6 {[%emt 0:01:14]} Qf6 {[%emt 0:00:02]} 28. Nexg7 {[%emt 0:01:39]} Qxc3 {[%emt 0:00:40]} 29. Rxc3 {[%emt 0:00:11]} Rxe4 {[%emt 0:00:29]} 30. Nxh5 {[%emt 0:00:20]} Rb4 {[%emt 0:02:26]} 31. Rf3 {[%emt 0:05:35]} Kf8 {[%emt 0:01:24]} 32. Nh6 {[%emt 0:00:36]} Ne5 {[%emt 0:00:11]} 33. Rg3 {[%emt 0:00:03]} Ng6 {[%emt 0:01:04]} 34. Rf3 {[%emt 0:02:23]} Ne5 {[%emt 0:00:05]} 35. Rg3 {[%emt 0:06:48]} Ng6 {[%emt 0:00:02]} 36. Rf3 {[%emt 0:03:27]} 1/2-1/2

[Event "XI Paracin Festival 2018"]
[Site "Paracin"]
[Date "2018.07.10"]
[Round "5"]
[White "Damljanovic, Branko"]
[Black "Dimitrov, Vladimir"]
[Result "1/2-1/2"]
[ECO "E15"]
[WhiteElo "2508"]
[BlackElo "2308"]
[Annotator "ChessBase"]
[PlyCount "40"]
[EventDate "2018.07.06"]
[EventType "swiss"]
[EventCountry "SRB"]
[SourceTitle "playchess.com"]
[Source "ChessBase"]
[SourceQuality "1"]
[TimeControl "5400+30"]

1. d4 {[%emt 0:00:17]} Nf6 {[%emt 0:00:26]} 2. c4 {[%emt 0:00:06]} e6 {[%emt 0:00:07]} 3. Nf3 {[%emt 0:00:13]} b6 {[%emt 0:00:09]} 4. g3 {[%emt 0:00:05]} Ba6 {[%emt 0:00:08]} 5. b3 {[%emt 0:00:03]} Bb7 {[%emt 0:00:21]} 6. Bg2 {[%emt 0:00:02]} Bb4+ {[%emt 0:00:09]} 7. Bd2 {[%emt 0:00:03]} a5 {[%emt 0:00:09]} 8. O-O {[%emt 0:00:36]} O-O {[%emt 0:00:07]} 9. Nc3 {[%emt 0:01:13]} Ne4 {[%emt 0:00:28]} 10. Nxe4 {[%emt 0:10:23]} Bxe4 {[%emt 0:05:22]} 11. Bxb4 {[%emt 0:02:48]} axb4 {[%emt 0:01:37]} 12. Qd2 {[%emt 0:00:02]} Qe7 {[%emt 0:05:53]} 13. Rfd1 {[%emt 0:18:45]} c5 {[%emt 0:10:36]} 14. Qe3 {[%emt 0:13:20]} f5 {[%emt 0:01:20]} 15. Rd2 {[%emt 0:06:53]} Nc6 {[%emt 0:08:19]} 16. d5 {[%emt 0:03:42]} Qf6 {[%emt 0:02:59]} 17. Rc1 {[%emt 0:16:52]} exd5 {[%emt 0:00:33]} 18. cxd5 {[%emt 0:00:01]} Na7 {[%emt 0:01:04]} 19. h4 {[%emt 0:11:39]} h6 {[%emt 0:02:26]} 20. h5 {[%emt 0:01:24]} Rae8 {[%emt 0:01:47]} 1/2-1/2

[Event "XI Paracin Festival 2018"]
[Site "Paracin"]
[Date "2018.07.10"]
[Round "5"]
[White "Yilmazyerli, Mert"]
[Black "Savanovic, Vuk"]
[Result "1/2-1/2"]
[ECO "B20"]
[WhiteElo "2491"]
[BlackElo "2294"]
[Annotator "ChessBase"]
[PlyCount "121"]
[EventDate "2018.07.06"]
[EventType "swiss"]
[EventCountry "SRB"]
[SourceTitle "playchess.com"]
[Source "ChessBase"]
[SourceQuality "1"]
[TimeControl "5400+30"]

1. e4 {[%emt 0:00:00]} c5 {[%emt 0:00:00]} 2. b3 {[%emt 0:00:00]} Nc6 {[%emt 0:04:24]} 3. Bb2 {[%emt 0:00:00]} Nf6 {[%emt 0:05:30]} 4. e5 {[%emt 0:00:04]} Nd5 {[%emt 0:00:12]} 5. Nf3 {[%emt 0:00:06]} e6 {[%emt 0:04:03]} 6. g3 {[%emt 0:00:18]} Be7 {[%emt 0:01:53]} 7. Bg2 {[%emt 0:00:07]} O-O {[%emt 0:00:54]} 8. O-O {[%emt 0:00:11]} f6 {[%emt 0:03:36]} 9. Nc3 {[%emt 0:02:15]} Nxc3 {[%emt 0:11:15]} 10. Bxc3 {[%emt 0:00:43]} d5 {[%emt 0:07:24]} 11. exd6 {[%emt 0:07:32]} Qxd6 {[%emt 0:00:30]} 12. d3 {[%emt 0:03:56]} e5 {[%emt 0:23:48]} 13. Nd2 {[%emt 0:00:31]} Be6 {[%emt 0:01:12]} 14. f4 {[%emt 0:00:38]} exf4 {[%emt 0:00:16]} 15. Rxf4 {[%emt 0:02:59]} f5 {[%emt 0:02:23]} 16. Nc4 {[%emt 0:02:05]} Qd7 {[%emt 0:01:52]} 17. Rf1 {[%emt 0:04:07]} Bf6 {[%emt 0:01:17]} 18. Bxf6 {[%emt 0:03:48]} Rxf6 {[%emt 0:00:43]} 19. Qd2 {[%emt 0:01:21]} Bxc4 {[%emt 0:04:29]} 20. bxc4 {[%emt 0:00:20]} Raf8 {[%emt 0:00:14]} 21. Kh1 {[%emt 0:00:27]} Ne5 {[%emt 0:00:55]} 22. Qe3 {[%emt 0:02:13]} Qd6 {[%emt 0:02:29]} 23. Bxb7 {[%emt 0:01:39]} Ng6 {[%emt 0:00:18]} 24. Rae1 {[%emt 0:03:46]} Kh8 {[%emt 0:06:48]} 25. c3 {[%emt 0:04:12]} f4 {[%emt 0:02:35]} 26. gxf4 {[%emt 0:01:39]} Nxf4 {[%emt 0:00:20]} 27. Be4 {[%emt 0:00:07]} g5 {[%emt 0:03:36]} 28. Rg1 {[%emt 0:04:09]} Rg8 {[%emt 0:01:45]} 29. d4 {[%emt 0:02:19]} cxd4 {[%emt 0:03:49]} 30. Qxd4 {[%emt 0:00:28]} Qf8 {[%emt 0:00:10]} 31. Qxa7 {[%emt 0:06:05]} Qh6 {[%emt 0:00:11]} 32. Qd4 {[%emt 0:00:37]} g4 {[%emt 0:01:47]} 33. Bd5 {[%emt 0:03:36]} Nxd5 {[%emt 0:01:10]} 34. cxd5 {[%emt 0:00:05]} g3 {[%emt 0:00:19]} 35. Rg2 {[%emt 0:00:25]} gxh2 {[%emt 0:00:48]} 36. Rxh2 {[%emt 0:02:15]} Qg6 {[%emt 0:00:46]} 37. Qe5 {[%emt 0:15:20]} Qg7 {[%emt 0:00:10]} 38. Qe4 {[%emt 0:02:13]} Rg6 {[%emt 0:02:07]} 39. Qd4 {[%emt 0:01:06]} Qxd4 {[%emt 0:00:05]} 40. cxd4 {[%emt 0:00:05]} Rg4 {[%emt 0:01:29]} 41. Rh5 {[%emt 0:04:02]} Rxd4 {[%emt 0:00:20]} 42. Re2 {[%emt 0:00:06]} Rd8 {[%emt 0:00:21]} 43. Ree5 {[%emt 0:00:35]} Ra8 {[%emt 0:02:02]} 44. Re2 {[%emt 0:03:49]} Rd8 {[%emt 0:00:11]} 45. Re7 {[%emt 0:00:13]} R8xd5 {[%emt 0:00:12]} 46. Rhxh7+ {[%emt 0:00:28]} Kg8 {[%emt 0:00:04]} 47. Rhg7+ {[%emt 0:00:15]} Kf8 {[%emt 0:00:34]} 48. Rgf7+ {[%emt 0:00:04]} Kg8 {[%emt 0:00:05]} 49. Rf2 {[%emt 0:00:08]} Rg4 {[%emt 0:01:50]} 50. Ree2 {[%emt 0:00:56]} Rh5+ {[%emt 0:00:20]} 51. Rh2 {[%emt 0:00:05]} Rxh2+ {[%emt 0:00:08]} 52. Kxh2 {[%emt 0:00:05]} Kf7 {[%emt 0:00:11]} 53. Kh3 {[%emt 0:00:06]} Rg6 {[%emt 0:00:54]} 54. a4 {[%emt 0:00:06]} Re6 {[%emt 0:00:18]} 55. Ra2 {[%emt 0:00:21]} Ke7 {[%emt 0:00:11]} 56. Kg4 {[%emt 0:00:05]} Kd7 {[%emt 0:00:24]} 57. Kf5 {[%emt 0:00:07]} Ra6 {[%emt 0:00:17]} 58. Ke5 {[%emt 0:00:07]} Ra5+ {[%emt 0:00:14]} 59. Kd4 {[%emt 0:00:06]} Kc6 {[%emt 0:00:03]} 60. Kc4 {[%emt 0:00:04]} Rh5 {[%emt 0:00:19]} 61. Kd4 {[%emt 0:02:53]} 1/2-1/2

[Event "XI Paracin Festival 2018"]
[Site "Paracin"]
[Date "2018.07.10"]
[Round "5"]
[White "Asadli, Vugar"]
[Black "Gukesh D"]
[Result "0-1"]
[ECO "B15"]
[WhiteElo "2478"]
[BlackElo "2433"]
[Annotator "ChessBase"]
[PlyCount "96"]
[EventDate "2018.07.06"]
[EventType "swiss"]
[EventCountry "SRB"]
[SourceTitle "playchess.com"]
[Source "ChessBase"]
[SourceQuality "1"]
[TimeControl "5400+30"]

1. e4 {[%emt 0:00:00]} c6 {[%emt 0:02:46]} 2. d4 {[%emt 0:00:00]} d5 {[%emt 0:00:29]} 3. Nd2 {[%emt 0:00:11]} dxe4 {[%emt 0:00:49]} 4. Nxe4 {[%emt 0:00:08]} Nf6 {[%emt 0:00:05]} 5. Nxf6+ {[%emt 0:00:09]} exf6 {[%emt 0:02:25]} 6. c3 {[%emt 0:00:21]} Bd6 {[%emt 0:00:23]} 7. Bd3 {[%emt 0:00:28]} O-O {[%emt 0:00:11]} 8. Qc2 {[%emt 0:00:21]} Re8+ {[%emt 0:06:02]} 9. Ne2 {[%emt 0:00:06]} g6 {[%emt 0:01:25]} 10. h4 {[%emt 0:00:27]} h5 {[%emt 0:13:23]} 11. Be3 {[%emt 0:06:42]} f5 {[%emt 0:02:04]} 12. O-O-O {[%emt 0:04:42]} Nd7 {[%emt 0:02:27]} 13. Kb1 {[%emt 0:08:09]} Nf6 {[%emt 0:03:17]} 14. Bg5 {[%emt 0:14:19]} Be7 {[%emt 0:00:42]} 15. Nf4 {[%emt 0:03:50]} Nd5 {[%emt 0:02:18]} 16. Bxe7 {[%emt 0:07:26]} Rxe7 {[%emt 0:00:21]} 17. Qd2 {[%emt 0:00:36]} Be6 {[%emt 0:06:23]} 18. Ne2 {[%emt 0:09:12]} a5 {[%emt 0:02:07]} 19. Nc1 {[%emt 0:07:22]} a4 {[%emt 0:05:02]} 20. Rhe1 {[%emt 0:05:57]} Rd7 {[%emt 0:06:13]} 21. g3 {[%emt 0:00:54]} Nf6 {[%emt 0:01:30]} 22. f3 {[%emt 0:03:05]} a3 {[%emt 0:04:06]} 23. b3 {[%emt 0:00:54]} c5 {[%emt 0:07:23]} 24. dxc5 {[%emt 0:01:58]} Qc7 {[%emt 0:00:22]} 25. c4 {[%emt 0:03:16]} Qxg3 {[%emt 0:04:51]} 26. Qc3 {[%emt 0:01:50]} Qxh4 {[%emt 0:01:35]} 27. Ne2 {[%emt 0:00:57]} Rad8 {[%emt 0:02:45]} 28. Rh1 {[%emt 0:01:09]} Qf2 {[%emt 0:01:28]} 29. Nf4 {[%emt 0:00:07]} Qd4 {[%emt 0:01:58]} 30. Qc1 {[%emt 0:00:04]} Qxc5 {[%emt 0:00:37]} 31. Rdg1 {[%emt 0:01:41]} Rd6 {[%emt 0:14:37]} 32. Rg2 {[%emt 0:05:23]} Qd4 {[%emt 0:02:57]} 33. Bc2 {[%emt 0:00:46]} Kh7 {[%emt 0:01:42]} 34. Rgh2 {[%emt 0:01:11]} Qb2+ {[%emt 0:00:58]} 35. Qxb2 {[%emt 0:00:07]} axb2 {[%emt 0:00:01]} 36. Re1 {[%emt 0:00:22]} Bd7 {[%emt 0:01:14]} 37. Nh3 {[%emt 0:01:31]} Re8 {[%emt 0:00:40]} 38. Rg1 {[%emt 0:00:29]} Re7 {[%emt 0:00:42]} 39. Kxb2 {[%emt 0:00:30]} Bc6 {[%emt 0:00:16]} 40. b4 {[%emt 0:00:06]} Kh6 {[%emt 0:00:22]} 41. Ng5 {[%emt 0:00:05]} b6 {[%emt 0:00:20]} 42. a4 {[%emt 0:00:01]} Rd4 {[%emt 0:00:16]} 43. Kc3 {[%emt 0:00:39]} Rf4 {[%emt 0:00:09]} 44. Rh3 {[%emt 0:00:32]} Ng4 {[%emt 0:01:33]} 45. b5 {[%emt 0:00:41]} Bb7 {[%emt 0:00:17]} 46. a5 {[%emt 0:00:00]} Re3+ {[%emt 0:00:34]} 47. Kd2 {[%emt 0:00:02]} Kxg5 {[%emt 0:00:12]} 48. axb6 {[%emt 0:00:09]} Rxc4 {[%emt 0:00:27]} 0-1